[Event "Titled Tuesday Blitz May 11 2021"]
[White "Hjartarson, Johann"]
[Black "Urazayev, Arystanbek"]
[WhiteFideId "2300044"]
[BlackFideId "13709810"]
[WhiteElo "2502"]
[BlackElo "2321"]
[Result "1-0"]
[Round "10"]
[TimeControl "180+1"]
[Date "2021.05.11"]
[WhiteClock "0:00:15"]
[BlackClock "0:00:05"]

1. e4 {[%clk 0:03:00]}  c5 {[%clk 0:03:00]} 2. Ne2 {[%clk 0:02:59]}  e6 {[%clk 0:03:00]} 3. Nbc3 {[%clk 0:02:56]}  d5 {[%clk 0:03:00]} 4. exd5 {[%clk 0:02:55]}  exd5 {[%clk 0:03:01]} 5. d4 {[%clk 0:02:55]}  Nc6 {[%clk 0:03:02]} 6. dxc5 {[%clk 0:02:48]}  d4 {[%clk 0:03:00]} 7. Ne4 {[%clk 0:02:47]}  Nf6 {[%clk 0:02:34]} 8. N2g3 {[%clk 0:02:41]}  Bxc5 {[%clk 0:02:25]} 9. Nxc5 {[%clk 0:02:36]}  Qa5+ {[%clk 0:02:25]} 10. Bd2 {[%clk 0:02:35]}  Qxc5 {[%clk 0:02:25]} 11. Bd3 {[%clk 0:02:33]}  O-O {[%clk 0:02:25]} 12. O-O {[%clk 0:02:33]}  Bg4 {[%clk 0:02:19]} 13. f3 {[%clk 0:02:32]}  Be6 {[%clk 0:02:18]} 14. a3 {[%clk 0:02:27]}  Rfe8 {[%clk 0:02:17]} 15. Re1 {[%clk 0:02:24]}  Bc4 {[%clk 0:02:04]} 16. b4 {[%clk 0:02:16]}  Qd5 {[%clk 0:01:59]} 17. Ne4 {[%clk 0:02:16]}  Nxe4 {[%clk 0:01:29]} 18. Bxe4 {[%clk 0:02:12]}  Qd6 {[%clk 0:01:27]} 19. Qc1 {[%clk 0:02:07]}  Bd5 {[%clk 0:01:24]} 20. Bf4 {[%clk 0:02:04]}  Qd7 {[%clk 0:01:24]} 21. Bd3 {[%clk 0:01:59]}  a5 {[%clk 0:01:12]} 22. Qd2 {[%clk 0:01:55]}  axb4 {[%clk 0:00:54]} 23. axb4 {[%clk 0:01:52]}  Rxa1 {[%clk 0:00:53]} 24. Rxa1 {[%clk 0:01:51]}  Qe7 {[%clk 0:00:44]} 25. b5 {[%clk 0:01:50]}  Ne5 {[%clk 0:00:44]} 26. Bf1 {[%clk 0:01:44]}  Qf6 {[%clk 0:00:31]} 27. Bxe5 {[%clk 0:01:21]}  Qxe5 {[%clk 0:00:29]} 28. Rd1 {[%clk 0:01:20]}  Be6 {[%clk 0:00:12]} 29. Qxd4 {[%clk 0:01:19]}  Qg5 {[%clk 0:00:12]} 30. c4 {[%clk 0:01:17]}  g6 {[%clk 0:00:11]} 31. h4 {[%clk 0:00:47]}  Qe7 {[%clk 0:00:11]} 32. c5 {[%clk 0:00:45]}  Rc8 {[%clk 0:00:11]} 33. Rc1 {[%clk 0:00:43]}  Rd8 {[%clk 0:00:11]} 34. Qf4 {[%clk 0:00:42]}  Rc8 {[%clk 0:00:07]} 35. c6 {[%clk 0:00:40]}  bxc6 {[%clk 0:00:08]} 36. bxc6 {[%clk 0:00:40]}  h5 {[%clk 0:00:05]} 37. c7 {[%clk 0:00:38]}  Rf8 {[%clk 0:00:04]} 38. Ba6 {[%clk 0:00:36]}  Bc8 {[%clk 0:00:05]} 39. Bxc8 {[%clk 0:00:33]}  Rxc8 {[%clk 0:00:06]} 40. Kh2 {[%clk 0:00:31]}  Qe6 {[%clk 0:00:06]} 41. Rb1 {[%clk 0:00:27]}  Kh7 {[%clk 0:00:06]} 42. Rb8 {[%clk 0:00:26]}  Kg7 {[%clk 0:00:04]} 43. Qd4+ {[%clk 0:00:25]}  f6 {[%clk 0:00:03]} 44. Rxc8 {[%clk 0:00:21]}  Qxc8 {[%clk 0:00:04]} 45. Qd8 {[%clk 0:00:21]}  Qf5 {[%clk 0:00:05]} 46. c8=Q {[%clk 0:00:17]}  Qf4+ {[%clk 0:00:05]} 47. Kh3 {[%clk 0:00:16]}  Qf5+ {[%clk 0:00:05]} 48. Qxf5 {[%clk 0:00:15]} 1-0


[Site "https://www.chess.com"]

[Event "Titled Tuesday Blitz May 11 2021"]
[White "Holt, Conrad"]
[Black "Nakamura, Hikaru"]
[WhiteFideId "2034387"]
[BlackFideId "2016192"]
[WhiteElo "2586"]
[BlackElo "2900"]
[Result "1-0"]
[Round "10"]
[TimeControl "180+1"]
[Date "2021.05.11"]
[WhiteClock "0:00:03"]
[BlackClock "0:00:02"]

1. d4 {[%clk 0:03:00]}  g6 {[%clk 0:03:00]} 2. c4 {[%clk 0:03:01]}  Bg7 {[%clk 0:02:59]} 3. Nf3 {[%clk 0:03:01]}  f5 {[%clk 0:02:53]} 4. g3 {[%clk 0:02:59]}  d6 {[%clk 0:02:52]} 5. Bg2 {[%clk 0:02:58]}  Nf6 {[%clk 0:02:50]} 6. O-O {[%clk 0:02:57]}  O-O {[%clk 0:02:50]} 7. Nc3 {[%clk 0:02:55]}  c6 {[%clk 0:02:50]} 8. b4 {[%clk 0:02:54]}  e5 {[%clk 0:02:33]} 9. dxe5 {[%clk 0:02:53]}  dxe5 {[%clk 0:02:34]} 10. Qb3 {[%clk 0:02:53]}  e4 {[%clk 0:02:33]} 11. Rd1 {[%clk 0:02:50]}  Qe8 {[%clk 0:02:33]} 12. Nd4 {[%clk 0:02:49]}  Nbd7 {[%clk 0:02:21]} 13. c5+ {[%clk 0:02:43]}  Rf7 {[%clk 0:02:06]} 14. Ne6 {[%clk 0:02:38]}  Ne5 {[%clk 0:02:05]} 15. Ng5 {[%clk 0:02:17]}  h6 {[%clk 0:02:03]} 16. Nxf7 {[%clk 0:02:16]}  Nxf7 {[%clk 0:02:04]} 17. Bb2 {[%clk 0:02:14]}  Be6 {[%clk 0:02:04]} 18. Qc2 {[%clk 0:02:14]}  Qe7 {[%clk 0:01:44]} 19. e3 {[%clk 0:02:00]}  Ne5 {[%clk 0:01:44]} 20. Ne2 {[%clk 0:01:55]}  Nd3 {[%clk 0:01:41]} 21. Bc3 {[%clk 0:01:54]}  Nd5 {[%clk 0:01:28]} 22. a3 {[%clk 0:01:35]}  Nxc3 {[%clk 0:01:11]} 23. Nxc3 {[%clk 0:01:36]}  Qf6 {[%clk 0:01:11]} 24. Ne2 {[%clk 0:01:02]}  Qxa1 {[%clk 0:01:10]} 25. Rxa1 {[%clk 0:01:01]}  Bxa1 {[%clk 0:01:10]} 26. Qd2 {[%clk 0:00:41]}  Bf6 {[%clk 0:01:04]} 27. Nd4 {[%clk 0:00:37]}  Bd5 {[%clk 0:00:59]} 28. Bf1 {[%clk 0:00:32]}  Ne5 {[%clk 0:00:57]} 29. b5 {[%clk 0:00:30]}  Bd8 {[%clk 0:00:40]} 30. Qc3 {[%clk 0:00:22]}  Bf6 {[%clk 0:00:40]} 31. Qa5 {[%clk 0:00:20]}  Bd8 {[%clk 0:00:40]} 32. Qa4 {[%clk 0:00:20]}  Kg7 {[%clk 0:00:39]} 33. Be2 {[%clk 0:00:19]}  h5 {[%clk 0:00:38]} 34. h4 {[%clk 0:00:19]}  Bc7 {[%clk 0:00:36]} 35. bxc6 {[%clk 0:00:18]}  Nxc6 {[%clk 0:00:28]} 36. Bc4 {[%clk 0:00:17]}  Nxd4 {[%clk 0:00:22]} 37. exd4 {[%clk 0:00:17]}  Bc6 {[%clk 0:00:20]} 38. Bb5 {[%clk 0:00:16]}  e3 {[%clk 0:00:18]} 39. fxe3 {[%clk 0:00:14]}  Be4 {[%clk 0:00:19]} 40. Bc4 {[%clk 0:00:11]}  Rd8 {[%clk 0:00:18]} 41. Qxa7 {[%clk 0:00:09]}  Bxg3 {[%clk 0:00:18]} 42. d5 {[%clk 0:00:08]}  Kh6 {[%clk 0:00:17]} 43. d6 {[%clk 0:00:07]}  Bxh4 {[%clk 0:00:15]} 44. Qb6 {[%clk 0:00:06]}  Bg5 {[%clk 0:00:16]} 45. Kf2 {[%clk 0:00:05]}  h4 {[%clk 0:00:16]} 46. Bf1 {[%clk 0:00:06]}  Re8 {[%clk 0:00:16]} 47. a4 {[%clk 0:00:04]}  Bc6 {[%clk 0:00:17]} 48. Bb5 {[%clk 0:00:04]}  Bxe3+ {[%clk 0:00:15]} 49. Kf1 {[%clk 0:00:04]}  h3 {[%clk 0:00:11]} 50. Bxc6 {[%clk 0:00:05]}  bxc6 {[%clk 0:00:12]} 51. Qxc6 {[%clk 0:00:05]}  Re4 {[%clk 0:00:12]} 52. Qc8 {[%clk 0:00:04]}  h2 {[%clk 0:00:07]} 53. Qh8+ {[%clk 0:00:04]}  Kg5 {[%clk 0:00:08]} 54. Qxh2 {[%clk 0:00:04]}  Bxc5 {[%clk 0:00:09]} 55. Qg3+ {[%clk 0:00:04]}  Kf6 {[%clk 0:00:09]} 56. Qc3+ {[%clk 0:00:04]}  Bd4 {[%clk 0:00:09]} 57. Qc7 {[%clk 0:00:04]}  Rf4+ {[%clk 0:00:05]} 58. Kg2 {[%clk 0:00:04]}  Rf2+ {[%clk 0:00:05]} 59. Kh3 {[%clk 0:00:05]}  Rf3+ {[%clk 0:00:04]} 60. Kh2 {[%clk 0:00:03]}  Rf2+ {[%clk 0:00:03]} 61. Kg3 {[%clk 0:00:03]}  f4+ {[%clk 0:00:03]} 62. Kg4 {[%clk 0:00:04]}  Rg2+ {[%clk 0:00:04]} 63. Kf3 {[%clk 0:00:04]}  Rd2 {[%clk 0:00:01]} 64. Qe7+ {[%clk 0:00:03]}  Kf5 {[%clk 0:00:02]} 65. Qf7+ {[%clk 0:00:03]} 1-0


[Site "https://www.chess.com"]

[Event "Titled Tuesday Blitz May 11 2021"]
[White "Indjic, Aleksandar"]
[Black "Nazaretyan, Tigran"]
[WhiteFideId "911925"]
[BlackFideId "24162345"]
[WhiteElo "2643"]
[BlackElo "2247"]
[Result "1-0"]
[Round "10"]
[TimeControl "180+1"]
[Date "2021.05.11"]
[WhiteClock "0:01:46"]
[BlackClock "0:00:49"]

1. d4 {[%clk 0:03:00]}  Nf6 {[%clk 0:02:59]} 2. c4 {[%clk 0:03:01]}  d6 {[%clk 0:02:56]} 3. Nf3 {[%clk 0:03:00]}  Nbd7 {[%clk 0:02:56]} 4. Nc3 {[%clk 0:03:01]}  e5 {[%clk 0:02:56]} 5. Bg5 {[%clk 0:03:01]}  Be7 {[%clk 0:02:56]} 6. Qc2 {[%clk 0:03:01]}  h6 {[%clk 0:02:53]} 7. Bh4 {[%clk 0:03:00]}  c6 {[%clk 0:02:53]} 8. e3 {[%clk 0:03:00]}  Nh5 {[%clk 0:02:52]} 9. Bg3 {[%clk 0:02:55]}  Nxg3 {[%clk 0:02:48]} 10. hxg3 {[%clk 0:02:56]}  a6 {[%clk 0:02:43]} 11. O-O-O {[%clk 0:02:56]}  Qa5 {[%clk 0:02:42]} 12. Kb1 {[%clk 0:02:51]}  b5 {[%clk 0:02:41]} 13. c5 {[%clk 0:02:49]}  dxc5 {[%clk 0:02:31]} 14. dxe5 {[%clk 0:02:49]}  Nb6 {[%clk 0:02:19]} 15. Bd3 {[%clk 0:02:12]}  Be6 {[%clk 0:02:16]} 16. Bf5 {[%clk 0:02:11]}  O-O {[%clk 0:01:58]} 17. Bxe6 {[%clk 0:02:05]}  fxe6 {[%clk 0:01:58]} 18. Rxh6 {[%clk 0:01:59]}  Rxf3 {[%clk 0:01:04]} 19. Qh7+ {[%clk 0:01:54]}  Kf8 {[%clk 0:01:01]} 20. Rg6 {[%clk 0:01:52]}  Rf5 {[%clk 0:00:51]} 21. Qh8+ {[%clk 0:01:46]}  Kf7 {[%clk 0:00:49]} 22. Rxg7# {[%clk 0:01:46]} 1-0


[Site "https://www.chess.com"]

[Event "Titled Tuesday Blitz May 11 2021"]
[White "Ioannidis, Evgenios"]
[Black "Petriashvili, Nikoloz"]
[WhiteFideId "4229274"]
[BlackFideId "13611216"]
[WhiteElo "2174"]
[BlackElo "2430"]
[Result "0-1"]
[Round "10"]
[TimeControl "180+1"]
[Date "2021.05.11"]
[WhiteClock "0:00:03"]
[BlackClock "0:00:30"]

1. d4 {[%clk 0:03:00]}  Nf6 {[%clk 0:03:00]} 2. c4 {[%clk 0:03:01]}  g6 {[%clk 0:03:00]} 3. Nc3 {[%clk 0:03:01]}  d5 {[%clk 0:03:00]} 4. cxd5 {[%clk 0:03:01]}  Nxd5 {[%clk 0:03:01]} 5. Bd2 {[%clk 0:03:01]}  Nb6 {[%clk 0:03:01]} 6. e3 {[%clk 0:02:59]}  Bg7 {[%clk 0:03:01]} 7. h4 {[%clk 0:03:00]}  N8d7 {[%clk 0:02:56]} 8. h5 {[%clk 0:02:59]}  c5 {[%clk 0:02:56]} 9. hxg6 {[%clk 0:02:55]}  hxg6 {[%clk 0:02:56]} 10. Rxh8+ {[%clk 0:02:55]}  Bxh8 {[%clk 0:02:57]} 11. Nf3 {[%clk 0:02:50]}  cxd4 {[%clk 0:02:56]} 12. exd4 {[%clk 0:02:50]}  Nf6 {[%clk 0:02:54]} 13. Bb5+ {[%clk 0:02:45]}  Bd7 {[%clk 0:02:54]} 14. Qe2 {[%clk 0:02:45]}  Bxb5 {[%clk 0:02:54]} 15. Qxb5+ {[%clk 0:02:27]}  Qd7 {[%clk 0:02:53]} 16. Qe2 {[%clk 0:01:52]}  Rc8 {[%clk 0:02:50]} 17. O-O-O {[%clk 0:01:51]}  Qg4 {[%clk 0:02:37]} 18. Kb1 {[%clk 0:01:41]}  Nc4 {[%clk 0:02:33]} 19. Bc1 {[%clk 0:01:35]}  Bg7 {[%clk 0:02:26]} 20. Re1 {[%clk 0:01:28]}  e6 {[%clk 0:02:13]} 21. Ka1 {[%clk 0:01:20]}  Kf8 {[%clk 0:02:08]} 22. g3 {[%clk 0:01:03]}  a6 {[%clk 0:02:01]} 23. d5 {[%clk 0:00:56]}  Nxd5 {[%clk 0:01:56]} 24. Nxd5 {[%clk 0:00:56]}  exd5 {[%clk 0:01:57]} 25. Qe7+ {[%clk 0:00:56]}  Kg8 {[%clk 0:01:55]} 26. Ng5 {[%clk 0:00:51]}  Qf5 {[%clk 0:01:51]} 27. Qxb7 {[%clk 0:00:48]}  Ne5 {[%clk 0:01:34]} 28. g4 {[%clk 0:00:29]}  Rxc1+ {[%clk 0:01:15]} 29. Rxc1 {[%clk 0:00:29]}  Qxg5 {[%clk 0:01:15]} 30. Qb8+ {[%clk 0:00:25]}  Kh7 {[%clk 0:01:12]} 31. Rh1+ {[%clk 0:00:22]}  Bh6 {[%clk 0:01:12]} 32. Qf8 {[%clk 0:00:12]}  d4 {[%clk 0:00:57]} 33. Qe8 {[%clk 0:00:09]}  Qf4 {[%clk 0:00:41]} 34. a3 {[%clk 0:00:06]}  Nxg4 {[%clk 0:00:33]} 35. Rd1 {[%clk 0:00:06]}  Nxf2 {[%clk 0:00:32]} 36. Rf1 {[%clk 0:00:05]}  d3 {[%clk 0:00:31]} 37. Qd7 {[%clk 0:00:03]}  d2 {[%clk 0:00:30]} 0-1


[Site "https://www.chess.com"]

[Event "Titled Tuesday Blitz May 11 2021"]
[White "Jacobson, Brandon"]
[Black "Fier, Alexandr"]
[WhiteFideId "30901561"]
[BlackFideId "2107139"]
[WhiteElo "2362"]
[BlackElo "2569"]
[Result "1-0"]
[Round "10"]
[TimeControl "180+1"]
[Date "2021.05.11"]
[WhiteClock "0:00:25"]
[BlackClock "0:00:24"]

1. d4 {[%clk 0:03:00]}  Nf6 {[%clk 0:02:58]} 2. c4 {[%clk 0:03:01]}  c5 {[%clk 0:02:58]} 3. d5 {[%clk 0:03:01]}  e6 {[%clk 0:02:58]} 4. Nc3 {[%clk 0:03:01]}  exd5 {[%clk 0:02:59]} 5. cxd5 {[%clk 0:03:02]}  d6 {[%clk 0:03:00]} 6. e4 {[%clk 0:03:03]}  g6 {[%clk 0:03:00]} 7. h3 {[%clk 0:03:03]}  Bg7 {[%clk 0:03:00]} 8. Nf3 {[%clk 0:03:04]}  O-O {[%clk 0:03:01]} 9. Bd3 {[%clk 0:03:05]}  Nbd7 {[%clk 0:02:56]} 10. O-O {[%clk 0:03:05]}  Re8 {[%clk 0:02:57]} 11. Re1 {[%clk 0:03:04]}  Ne5 {[%clk 0:02:56]} 12. Nxe5 {[%clk 0:03:05]}  Rxe5 {[%clk 0:02:57]} 13. Bf4 {[%clk 0:03:05]}  Nh5 {[%clk 0:02:57]} 14. Bh2 {[%clk 0:03:06]}  Qe7 {[%clk 0:02:29]} 15. f4 {[%clk 0:02:50]}  Nxf4 {[%clk 0:02:29]} 16. Bxf4 {[%clk 0:02:51]}  Rh5 {[%clk 0:02:29]} 17. Qf3 {[%clk 0:02:37]}  Bd4+ {[%clk 0:02:15]} 18. Kh1 {[%clk 0:02:22]}  Bd7 {[%clk 0:02:10]} 19. Rf1 {[%clk 0:02:13]}  Re8 {[%clk 0:02:09]} 20. Rae1 {[%clk 0:02:13]}  a6 {[%clk 0:02:07]} 21. a4 {[%clk 0:02:05]}  Rh4 {[%clk 0:01:58]} 22. Bg3 {[%clk 0:01:39]}  Rh5 {[%clk 0:01:58]} 23. e5 {[%clk 0:01:31]}  dxe5 {[%clk 0:01:56]} 24. d6 {[%clk 0:01:23]}  Qe6 {[%clk 0:01:48]} 25. Nd5 {[%clk 0:01:14]}  f5 {[%clk 0:01:48]} 26. Nc7 {[%clk 0:01:12]}  Qxd6 {[%clk 0:01:35]} 27. Nxe8 {[%clk 0:01:13]}  Bxe8 {[%clk 0:01:34]} 28. Bc4+ {[%clk 0:01:11]}  Kh8 {[%clk 0:01:24]} 29. Qe2 {[%clk 0:01:04]}  f4 {[%clk 0:00:57]} 30. Rxf4 {[%clk 0:00:57]}  Bc6 {[%clk 0:00:41]} 31. Rxd4 {[%clk 0:00:37]}  Rxh3+ {[%clk 0:00:41]} 32. Kg1 {[%clk 0:00:38]}  Qxd4+ {[%clk 0:00:41]} 33. Bf2 {[%clk 0:00:38]}  Qf4 {[%clk 0:00:26]} 34. Qxe5+ {[%clk 0:00:25]}  Qxe5 {[%clk 0:00:26]} 35. Rxe5 {[%clk 0:00:26]}  Rh5 {[%clk 0:00:23]} 36. Rxh5 {[%clk 0:00:25]}  gxh5 {[%clk 0:00:24]} 37. Bxc5 {[%clk 0:00:25]}  Bxa4 {[%clk 0:00:24]} 38. Bd4# {[%clk 0:00:25]} 1-0


[Site "https://www.chess.com"]

[Event "Titled Tuesday Blitz May 11 2021"]
[White "Kacharava, Nikolozi"]
[Black "Jones, Gawain C B"]
[WhiteFideId "13611860"]
[BlackFideId "409561"]
[WhiteElo "2149"]
[BlackElo "2657"]
[Result "1-0"]
[Round "10"]
[TimeControl "180+1"]
[Date "2021.05.11"]
[WhiteClock "0:00:04"]
[BlackClock "0:00:12"]

1. e4 {[%clk 0:03:00]}  c6 {[%clk 0:02:51]} 2. d4 {[%clk 0:03:00]}  d5 {[%clk 0:02:51]} 3. e5 {[%clk 0:03:01]}  Bf5 {[%clk 0:02:51]} 4. Nc3 {[%clk 0:03:01]}  e6 {[%clk 0:02:49]} 5. g4 {[%clk 0:03:01]}  Bg6 {[%clk 0:02:49]} 6. Nge2 {[%clk 0:03:01]}  c5 {[%clk 0:02:46]} 7. h4 {[%clk 0:03:01]}  Nc6 {[%clk 0:02:43]} 8. h5 {[%clk 0:02:56]}  Be4 {[%clk 0:02:43]} 9. Nxe4 {[%clk 0:02:56]}  dxe4 {[%clk 0:02:44]} 10. c3 {[%clk 0:02:52]}  cxd4 {[%clk 0:02:39]} 11. cxd4 {[%clk 0:02:52]}  Bb4+ {[%clk 0:02:30]} 12. Bd2 {[%clk 0:02:52]}  Nh6 {[%clk 0:02:30]} 13. Bh3 {[%clk 0:02:40]}  e3 {[%clk 0:02:12]} 14. fxe3 {[%clk 0:02:36]}  Qh4+ {[%clk 0:02:11]} 15. Kf1 {[%clk 0:02:32]}  Nxg4 {[%clk 0:02:09]} 16. Bxg4 {[%clk 0:02:12]}  Qxh1+ {[%clk 0:02:08]} 17. Kf2 {[%clk 0:02:09]}  Qh4+ {[%clk 0:02:00]} 18. Kf3 {[%clk 0:02:05]}  Bxd2 {[%clk 0:01:26]} 19. Qxd2 {[%clk 0:02:04]}  O-O {[%clk 0:01:27]} 20. Qe1 {[%clk 0:01:14]}  Qxe1 {[%clk 0:01:20]} 21. Rxe1 {[%clk 0:01:15]}  Nb4 {[%clk 0:01:10]} 22. Nc3 {[%clk 0:01:07]}  Rac8 {[%clk 0:01:07]} 23. Rd1 {[%clk 0:01:03]}  f5 {[%clk 0:01:01]} 24. exf6 {[%clk 0:00:57]}  Rxf6+ {[%clk 0:01:01]} 25. Ke4 {[%clk 0:00:55]}  Kf8 {[%clk 0:00:54]} 26. a3 {[%clk 0:00:52]}  Nd5 {[%clk 0:00:52]} 27. Nxd5 {[%clk 0:00:47]}  exd5+ {[%clk 0:00:53]} 28. Kxd5 {[%clk 0:00:46]}  Rc2 {[%clk 0:00:53]} 29. b4 {[%clk 0:00:40]}  Ke7 {[%clk 0:00:49]} 30. e4 {[%clk 0:00:32]}  Rd6+ {[%clk 0:00:32]} 31. Ke5 {[%clk 0:00:32]}  Rg2 {[%clk 0:00:26]} 32. Bf5 {[%clk 0:00:24]}  Rg5 {[%clk 0:00:22]} 33. Rc1 {[%clk 0:00:21]}  Rc6 {[%clk 0:00:22]} 34. Rf1 {[%clk 0:00:06]}  Rxh5 {[%clk 0:00:21]} 35. d5 {[%clk 0:00:05]}  Rc2 {[%clk 0:00:14]} 36. d6+ {[%clk 0:00:05]}  Kd8 {[%clk 0:00:14]} 37. Ke6 {[%clk 0:00:06]}  Rhh2 {[%clk 0:00:12]} 38. Bxh7 {[%clk 0:00:04]}  Rcf2 {[%clk 0:00:12]} 39. Rxf2 {[%clk 0:00:04]} 1-0


[Site "https://www.chess.com"]

[Event "Titled Tuesday Blitz May 11 2021"]
[White "Kamsky, Gata"]
[Black "Demin, Vladimir"]
[WhiteFideId "2000024"]
[BlackFideId "4167457"]
[WhiteElo "2644"]
[BlackElo "2546"]
[Result "1/2-1/2"]
[Round "10"]
[TimeControl "180+1"]
[Date "2021.05.11"]
[WhiteClock "0:01:12"]
[BlackClock "0:01:40"]

1. d4 {[%clk 0:03:00]}  Nf6 {[%clk 0:02:57]} 2. Nf3 {[%clk 0:02:51]}  d5 {[%clk 0:02:57]} 3. Bf4 {[%clk 0:02:50]}  c5 {[%clk 0:02:57]} 4. e3 {[%clk 0:02:48]}  Nc6 {[%clk 0:02:57]} 5. Nbd2 {[%clk 0:02:45]}  e6 {[%clk 0:02:56]} 6. c3 {[%clk 0:02:41]}  Bd6 {[%clk 0:02:54]} 7. Bg3 {[%clk 0:02:40]}  O-O {[%clk 0:02:45]} 8. Bd3 {[%clk 0:02:40]}  c4 {[%clk 0:02:38]} 9. Bc2 {[%clk 0:02:39]}  b5 {[%clk 0:02:38]} 10. a3 {[%clk 0:02:36]}  a5 {[%clk 0:02:37]} 11. e4 {[%clk 0:02:34]}  dxe4 {[%clk 0:02:37]} 12. Nxe4 {[%clk 0:02:32]}  Nxe4 {[%clk 0:02:36]} 13. Bxe4 {[%clk 0:02:32]}  Bb7 {[%clk 0:02:35]} 14. a4 {[%clk 0:02:26]}  b4 {[%clk 0:02:32]} 15. Bxd6 {[%clk 0:02:25]}  Qxd6 {[%clk 0:02:30]} 16. O-O {[%clk 0:02:25]}  h6 {[%clk 0:02:19]} 17. Qe2 {[%clk 0:02:14]}  f5 {[%clk 0:02:11]} 18. Bxc6 {[%clk 0:02:06]}  Bxc6 {[%clk 0:02:11]} 19. Ne5 {[%clk 0:02:04]}  Bd5 {[%clk 0:02:11]} 20. Nxc4 {[%clk 0:01:55]}  Qa6 {[%clk 0:02:10]} 21. b3 {[%clk 0:01:55]}  bxc3 {[%clk 0:02:10]} 22. Rfc1 {[%clk 0:01:52]}  Rab8 {[%clk 0:02:07]} 23. Rxc3 {[%clk 0:01:52]}  Rxb3 {[%clk 0:01:59]} 24. Rxb3 {[%clk 0:01:51]}  Bxc4 {[%clk 0:02:00]} 25. Qc2 {[%clk 0:01:51]}  Bxb3 {[%clk 0:02:00]} 26. Qxb3 {[%clk 0:01:51]}  Rd8 {[%clk 0:01:58]} 27. Rd1 {[%clk 0:01:39]}  Kh8 {[%clk 0:01:54]} 28. h3 {[%clk 0:01:37]}  Qd6 {[%clk 0:01:49]} 29. Qb5 {[%clk 0:01:30]}  Qd5 {[%clk 0:01:48]} 30. Re1 {[%clk 0:01:21]}  Qxb5 {[%clk 0:01:42]} 31. axb5 {[%clk 0:01:21]}  Rxd4 {[%clk 0:01:43]} 32. Rxe6 {[%clk 0:01:20]}  Rb4 {[%clk 0:01:42]} 33. b6 {[%clk 0:01:19]}  a4 {[%clk 0:01:43]} 34. Re8+ {[%clk 0:01:13]}  Kh7 {[%clk 0:01:43]} 35. Ra8 {[%clk 0:01:13]}  Rxb6 {[%clk 0:01:43]} 36. Rxa4 {[%clk 0:01:13]}  Rb1+ {[%clk 0:01:41]} 37. Kh2 {[%clk 0:01:13]}  Rb6 {[%clk 0:01:40]} 38. g3 {[%clk 0:01:12]}  Kg6 {[%clk 0:01:40]} 39. Kg2 {[%clk 0:01:12]}  Kf6 {[%clk 0:01:40]} 1/2-1/2


[Site "https://www.chess.com"]

[Event "Titled Tuesday Blitz May 11 2021"]
[White "Kollars, Dmitrij"]
[Black "Pantsulaia, Levan"]
[WhiteFideId "12909572"]
[BlackFideId "13602071"]
[WhiteElo "2576"]
[BlackElo "2530"]
[Result "0-1"]
[Round "10"]
[TimeControl "180+1"]
[Date "2021.05.11"]
[WhiteClock "0:00:02"]
[BlackClock "0:00:32"]

1. Nf3 {[%clk 0:03:00]}  c5 {[%clk 0:02:51]} 2. e4 {[%clk 0:03:00]}  e6 {[%clk 0:02:50]} 3. d4 {[%clk 0:02:57]}  cxd4 {[%clk 0:02:51]} 4. Nxd4 {[%clk 0:02:58]}  a6 {[%clk 0:02:51]} 5. c4 {[%clk 0:02:56]}  Nf6 {[%clk 0:02:50]} 6. Nc3 {[%clk 0:02:57]}  Qc7 {[%clk 0:02:50]} 7. Be2 {[%clk 0:02:55]}  b6 {[%clk 0:02:46]} 8. O-O {[%clk 0:02:48]}  Bb7 {[%clk 0:02:47]} 9. Qd3 {[%clk 0:02:49]}  d6 {[%clk 0:02:46]} 10. f4 {[%clk 0:02:48]}  Nbd7 {[%clk 0:02:46]} 11. b4 {[%clk 0:02:48]}  Be7 {[%clk 0:02:43]} 12. Bb2 {[%clk 0:02:47]}  O-O {[%clk 0:02:41]} 13. a3 {[%clk 0:02:46]}  Rfe8 {[%clk 0:02:41]} 14. Rac1 {[%clk 0:02:41]}  Bf8 {[%clk 0:02:40]} 15. Nc2 {[%clk 0:02:30]}  Rac8 {[%clk 0:02:38]} 16. g4 {[%clk 0:02:22]}  d5 {[%clk 0:02:18]} 17. cxd5 {[%clk 0:02:21]}  exd5 {[%clk 0:02:18]} 18. e5 {[%clk 0:02:21]}  Nxe5 {[%clk 0:01:51]} 19. fxe5 {[%clk 0:02:22]}  Qxe5 {[%clk 0:01:51]} 20. Bf3 {[%clk 0:02:11]}  Ne4 {[%clk 0:01:40]} 21. Nxe4 {[%clk 0:01:37]}  dxe4 {[%clk 0:01:41]} 22. Qb3 {[%clk 0:01:32]}  Bd5 {[%clk 0:01:30]} 23. Bxe5 {[%clk 0:00:45]}  Bxb3 {[%clk 0:01:29]} 24. Bxe4 {[%clk 0:00:27]}  Rxe5 {[%clk 0:01:26]} 25. Bd3 {[%clk 0:00:21]}  a5 {[%clk 0:01:24]} 26. bxa5 {[%clk 0:00:18]}  bxa5 {[%clk 0:01:21]} 27. Nd4 {[%clk 0:00:17]}  Bc5 {[%clk 0:00:46]} 28. Rxc5 {[%clk 0:00:15]}  Rcxc5 {[%clk 0:00:46]} 29. Nxb3 {[%clk 0:00:15]}  Rc3 {[%clk 0:00:47]} 30. Nxa5 {[%clk 0:00:03]}  Rxa5 {[%clk 0:00:42]} 31. Be4 {[%clk 0:00:02]}  Rcxa3 {[%clk 0:00:39]} 32. Bf3 {[%clk 0:00:02]}  Ra1 {[%clk 0:00:38]} 33. Kg2 {[%clk 0:00:03]}  Rxf1 {[%clk 0:00:37]} 34. Kxf1 {[%clk 0:00:04]}  Ra2 {[%clk 0:00:37]} 35. Be2 {[%clk 0:00:04]}  Kf8 {[%clk 0:00:35]} 36. Kf2 {[%clk 0:00:05]}  Ke7 {[%clk 0:00:35]} 37. Kf3 {[%clk 0:00:02]}  Kf6 {[%clk 0:00:32]} 38. h4 {[%clk 0:00:02]}  h6 {[%clk 0:00:32]} 0-1


[Site "https://www.chess.com"]